bitfinex/quotes_ETHUSD_20250526
["timestamp","ask_amount","ask_price","bid_price","bid_amount"]
[1748281972512,3.42840109,2532.6,2532.1,20.53223949]
[1748281972810,3.42838016,2532.6,2532.1,21.12121124]
[1748281972967,1.4541,2532.6,2532.1,21.12121124]
[1748281973165,3.42838514,2532.6,2532.1,21.12121124]
[1748281973361,1.97433948,2532.5,2532.1,21.12121124]
[1748281973560,1.4541,2532.6,2532.1,21.12121124]
[1748281973773,1.97433371,2532.5,2532.1,21.12121124]
[1748281973975,1.97421118,2532.7,2532.1,17.17192162]
[1748281974176,1.97409981,2532.8,2532.2,3.94899543]
[1748281974398,1.97431367,2532.6,2532.1,21.12115751]
[1748281974800,0.1,2532.9,2532.3,8.55]
[1748281975094,2.07409795,2532.9,2532.4,3.94873537]
[1748281975301,0.1,2532.9,2532.3,13.456]
[1748281975458,1.97424841,2532.7,2532.3,12.906]
[1748281975659,1.97424841,2532.7,2532.3,16.853]
[1748281976459,1.97424841,2532.7,2532.3,20.8019767]
[1748281977115,1.97426702,2532.6,2532.3,12.906]
[1748281977260,1.97440432,2532.5,2532.4,11.947]
[1748281977678,1.97429469,2532.6,2532.4,11.947]
[1748281978902,1.97414227,2532.8,2532.4,11.947]
[1748281979062,0.1,2532.9,2532.4,11.947]
[1748281979399,2.07406426,2532.9,2532.5,8.0]
[1748281979593,1.97410163,2532.8,2532.5,8.0]
[1748281979804,1.9742557,2532.6,2532.5,8.0]
[1748281979973,1.97437438,2532.5,2532.2,8.0]
[1748281980676,1.97454762,2532.3,2532.1,4.72]
[1748281980865,1.97454762,2532.3,2532.2,4.905]
[1748281981067,1.97445517,2532.4,2532.2,12.905]
[1748281981678,1.97437561,2532.5,2532.2,12.905]
[1748281981879,1.97425483,2532.7,2532.3,8.0]
[1748281982073,3.32063531,2532.8,2532.3,8.0]
[1748281982283,1.97417775,2532.7,2532.3,8.0]
[1748281982480,1.97424269,2532.7,2532.3,8.0]
[1748281982745,1.97429676,2532.6,2532.2,8.85412934]
[1748281982909,3.32066076,2532.8,2532.3,3.94891368]
[1748281983085,1.3465,2532.8,2532.3,3.94891368]
[1748281983271,1.97419201,2532.7,2532.3,3.94891368]
[1748281983470,3.32062702,2532.8,2532.3,3.94891368]
[1748281983769,1.97417914,2532.7,2532.2,16.85405447]
[1748281984074,1.97422392,2532.7,2532.2,12.905]
[1748281984410,1.9743671,2532.5,2532.2,12.905]
[1748281984785,1.97442915,2532.4,2532.2,12.905]
[1748281985169,1.97437866,2532.5,2532.2,12.905]
[1748281985371,1.9742805,2532.6,2532.2,16.85411301]
[1748281985566,1.9742805,2532.6,2532.2,12.905]
[1748281986306,1.9742805,2532.6,2532.2,17.625]
[1748281986609,1.97435221,2532.5,2532.2,17.625]
[1748281987000,1.97422162,2532.7,2532.2,21.57412118]
[1748281987188,3.32063439,2532.8,2532.3,3.94896838]
[1748281987699,1.97418049,2532.7,2532.3,3.94896838]
[1748281988108,1.97418049,2532.7,2532.3,8.0]
[1748281988279,1.97418049,2532.7,2532.3,11.94897697]
[1748281988694,1.97414143,2532.8,2532.3,11.94897697]
[1748281988923,1.97420754,2532.7,2532.3,11.947]
[1748281989617,1.97413596,2532.8,2532.3,15.89588688]
[1748281989817,1.97413999,2532.8,2532.3,15.89588688]
[1748281990114,1.97419105,2532.7,2532.3,15.89588688]
[1748281991089,1.97429735,2532.6,2532.3,11.946]
[1748281991299,0.1,2532.9,2532.3,11.946]
[1748281991617,1.97429285,2532.6,2532.3,11.946]
[1748281991820,1.97422014,2532.7,2532.3,11.946]
[1748281992128,1.97422014,2532.7,2532.3,15.89496885]
[1748281992429,1.97422014,2532.7,2532.3,16.666]
[1748281993188,1.97422014,2532.7,2532.3,20.61496901]
[1748281993387,1.97422014,2532.7,2532.3,16.666]
[1748281993716,1.97422014,2532.7,2532.3,20.61491289]
[1748281994289,1.97430044,2532.6,2532.3,16.666]
[1748281994593,1.97422242,2532.7,2532.3,16.666]
[1748281994810,1.97413179,2532.8,2532.3,20.61495235]
[1748281994985,0.1,2532.9,2532.4,5.30520802]
[1748281995182,0.1,2532.9,2532.8,3.94819962]
[1748281995721,0.1,2532.9,2532.7,11.94826259]
[1748281996300,0.1,2532.9,2532.8,0.08978301]
[1748281998894,0.1,2532.9,2532.8,1.56168301]
[1748282000828,0.1,2532.9,2532.8,2.03247094]
[1748282004287,0.1,2532.9,2532.8,6.75247094]
[1748282004580,0.1,2532.9,2532.8,10.95751704]
[1748282004923,0.1,2532.9,2532.8,10.48672911]
[1748282007771,0.1,2532.9,2532.8,18.48672911]
[1748282008148,0.1,2532.9,2532.8,14.28168301]
[1748282009381,0.1,2532.9,2532.8,18.48672911]
[1748282013774,0.1,2532.9,2532.8,19.11130577]
[1748282018592,0.1,2532.9,2532.8,14.90625967]
[1748282018764,0.1,2532.9,2532.8,5.59735967]
[1748282018958,0.1,2532.9,2532.8,13.59735967]
[1748282019990,0.1,2532.9,2532.8,12.97278301]
[1748282020556,0.1,2532.9,2532.8,16.91778301]
[1748282024697,0.1,2532.9,2532.8,21.63778301]
[1748282024871,0.1,2532.9,2532.8,22.26235967]
[1748282025187,0.1,2532.9,2532.8,17.54235967]
[1748282025562,0.1,2532.9,2532.8,13.59735967]
[1748282025971,0.1,2532.9,2532.8,17.80240577]
[1748282026591,0.1,2532.9,2532.8,17.17782911]
[1748282028996,0.1,2532.9,2532.8,17.80240577]
[1748282030522,0.1,2532.9,2532.8,19.27830577]
[1748282031224,0.1,2532.9,2532.8,18.65372911]
[1748282032628,0.1,2532.9,2532.8,23.92372911]
[1748282034290,0.1,2532.9,2532.8,27.29472911]
[1748282035852,0.1,2532.9,2532.8,31.24292873]
[1748282037321,0.1,2532.9,2532.8,22.43892873]
[1748282037526,0.1,2532.9,2532.8,31.24292873]
[1748282038095,0.1,2532.9,2532.8,31.79292873]
[1748282040471,0.1,2532.9,2532.8,31.24292873]
[1748282040607,0.1,2532.9,2532.8,22.43892873]
[1748282040811,0.1,2532.9,2532.8,31.24292873]
[1748282041327,0.1,2532.9,2532.8,22.43892873]
[1748282041537,0.1,2532.9,2532.8,31.24292873]
[1748282044522,0.1,2532.9,2532.8,22.43892873]
[1748282044733,0.1,2532.9,2532.8,31.24292873]
[1748282046356,0.1,2532.9,2532.8,31.79292873]
[1748282046654,0.1,2532.9,2532.8,31.70314572]
[1748282046864,0.08947453,2532.9,2532.8,31.70314572]
[1748282047992,1.4457,2533.8,2533.7,8.0]
[1748282048268,1.3666,2533.3,2533.2,4.859]
[1748282048650,1.3666,2533.3,2533.2,12.859]
[1748282048849,3.34031018,2533.3,2533.2,12.859]
[1748282049165,1.4538,2533.2,2533.0,9.579]
[1748282049366,1.4538,2533.2,2533.1,8.0]
[1748282049665,1.97386601,2533.1,2533.0,8.47210418]
[1748282049825,1.4538,2533.2,2533.0,13.33110418]
[1748282050223,3.42762848,2533.2,2533.0,13.33110418]
[1748282050476,3.46506601,2533.1,2533.0,5.33110418]
[1748282050651,1.4912,2533.1,2533.0,5.33110418]
[1748282050971,1.4912,2533.1,2533.0,4.859]
[1748282051259,3.46506601,2533.1,2533.0,4.859]
[1748282051463,1.4912,2533.1,2533.0,4.859]
[1748282054883,3.46471002,2533.5,2533.0,8.80682406]
[1748282055087,1.4911,2533.5,2533.2,4.2050461]
[1748282055247,1.97365195,2533.4,2533.2,4.2050461]
[1748282057077,3.46469667,2533.5,2533.2,4.2050461]
[1748282057282,1.4911,2533.5,2533.4,4.2050461]
[1748282057584,3.46465437,2533.5,2533.4,12.2050461]
[1748282057756,3.46465437,2533.5,2533.4,8.0]
[1748282059146,1.97378018,2533.3,2533.2,8.0]
[1748282059351,1.97378018,2533.3,2533.1,0.47210418]
[1748282059352,1.97378809,2533.2,2533.1,0.47210418]
[1748282059556,3.43658809,2533.2,2533.1,0.47210418]
[1748282059762,1.4628,2533.2,2533.1,0.47210418]
[1748282060290,1.4628,2533.2,2533.0,12.859]
[1748282060786,3.43659708,2533.2,2533.0,12.859]
[1748282062089,1.97339858,2533.7,2533.1,4.2050461]
[1748282062294,1.97339858,2533.7,2533.3,4.2050461]
[1748282062598,3.46356129,2533.8,2533.4,8.0]
[1748282062599,1.4902,2533.8,2533.4,8.0]
[1748282062796,3.46353633,2533.8,2533.6,8.0]
[1748282063880,1.97339858,2533.7,2533.6,8.0]
[1748282064085,1.97350811,2533.6,2533.4,8.0]
[1748282064287,1.97344494,2533.7,2533.4,8.0]
[1748282064596,3.46354522,2533.8,2533.4,12.833]
[1748282064597,1.97352627,2533.6,2533.4,12.833]
[1748282064782,1.97355437,2533.5,2533.4,8.0]
[1748282064982,1.97355437,2533.5,2533.4,12.833]
[1748282065195,1.97352367,2533.6,2533.4,12.833]
[1748282065581,1.97343319,2533.7,2533.4,12.833]
[1748282065895,3.46355393,2533.8,2533.4,16.78023832]
[1748282066096,1.4902,2533.8,2533.6,8.0]
[1748282066261,3.46352262,2533.8,2533.6,8.0]
[1748282067169,1.4902,2533.8,2533.6,8.0]
[1748282067369,3.46355871,2533.8,2533.6,8.0]
[1748282067998,1.4902,2533.8,2533.6,8.0]
[1748282068559,1.4902,2533.8,2533.6,11.94689952]
[1748282068758,1.4902,2533.8,2533.6,8.0]
[1748282069169,1.97339858,2533.7,2533.6,8.0]
[1748282069370,3.35387647,2533.6,2533.5,4.72]
[1748282072087,1.97359524,2533.5,2533.3,8.0]
[1748282072294,1.97363227,2533.4,2533.3,8.0]
[1748282073011,1.97371018,2533.3,2533.2,4.833]
[1748282073506,1.97371018,2533.3,2533.1,13.30510418]
[1748282074262,1.97366808,2533.4,2533.1,13.30510418]
[1748282074869,1.97360656,2533.5,2533.2,4.2050461]
[1748282076007,1.97371018,2533.3,2533.2,4.2050461]
[1748282076300,3.32398809,2533.2,2533.1,13.30510418]
[1748282076507,1.3502,2533.2,2533.1,13.30510418]
[1748282077278,1.3502,2533.2,2533.1,12.833]
[1748282077522,1.3593,2533.4,2533.2,8.0]
[1748282077687,1.3593,2533.4,2533.3,8.0]
[1748282078196,3.33293227,2533.4,2533.3,8.0]
[1748282078398,3.33293227,2533.4,2533.2,12.2050461]
[1748282078624,3.33293227,2533.4,2533.3,8.0]
[1748282080107,1.97371018,2533.3,2533.2,12.2050461]
[1748282080408,3.33297004,2533.4,2533.3,8.0]
[1748282083437,3.33297004,2533.4,2533.2,4.2050461]
[1748282083438,3.43006601,2533.1,2533.0,8.47210418]
[1748282083724,3.43006601,2533.1,2533.0,8.0]
[1748282087671,1.4562,2533.1,2533.0,8.0]
[1748282087875,3.39938541,2533.3,2533.0,12.2050461]
[1748282088172,3.39934444,2533.3,2533.0,12.2050461]
[1748282088711,1.4256,2533.3,2533.0,13.01280167]
[1748282088912,3.39936588,2533.3,2533.0,12.2050461]
[1748282089121,1.97386601,2533.1,2533.0,8.0]
[1748282091621,1.97402187,2532.9,2532.8,0.47210418]
[1748282092614,1.97402187,2532.9,2532.6,12.83451834]
[1748282092615,1.97417775,2532.7,2532.6,12.2050461]
[1748282093799,1.97406985,2532.9,2532.6,12.2050461]
[1748282094885,3.4592557,2532.6,2532.5,0.47210418]
[1748282095141,8.26366981,2532.6,2532.5,0.47210418]
[1748282095280,4.0092557,2532.6,2532.5,0.47210418]
[1748282095735,4.3741562,2532.6,2532.5,0.47210418]
[1748282095935,9.34849127,2532.6,2532.5,0.47210418]
[1748282096103,1.97480153,2531.9,2531.8,8.0]
[1748282100901,1.4594,2532.2,2531.8,8.0]
[1748282101121,1.97457323,2532.2,2532.1,4.2050461]
[1748282101498,1.97464555,2532.1,2532.0,8.0]
[1748282103029,1.97487953,2531.8,2531.7,12.2050461]
[1748282106923,1.97487953,2531.8,2531.7,8.0]
[1748282108208,1.97487953,2531.8,2531.7,12.2050461]
[1748282109344,1.4623,2532.3,2531.9,8.0]
[1748282109546,1.97461299,2532.2,2532.1,4.2050461]
[1748282110415,1.97464555,2532.1,2531.9,4.2050461]
[1748282110747,1.97472353,2532.0,2531.9,4.2050461]
[1748282112759,1.97487953,2531.8,2531.7,12.2050461]
[1748282112959,1.97487953,2531.8,2531.7,8.0]
[1748282114259,1.97487953,2531.8,2531.7,12.2050461]
[1748282121884,0.36491582,2532.4,2531.8,8.0]
[1748282122193,2.33935689,2532.4,2532.2,4.2050461]
[1748282122335,1.97448959,2532.3,2532.2,4.2050461]
[1748282122535,1.97448959,2532.3,2532.2,12.2050461]
[1748282122757,1.97444107,2532.4,2532.2,12.2050461]
[1748282122758,1.97441306,2532.4,2532.3,8.0]
[1748282123148,0.36491582,2532.7,2532.3,8.0]
[1748282123377,1.97417775,2532.7,2532.6,12.2050461]
[1748282125068,1.97386601,2533.1,2532.6,4.2050461]
[1748282125268,1.97405645,2532.9,2532.6,4.2050461]
[1748282126570,1.97397368,2533.0,2532.6,12.2050461]
[1748282126932,1.97389815,2533.1,2532.6,12.2050461]
[1748282127137,1.97398398,2533.0,2532.6,12.2050461]
[1748282127333,1.72664552,2533.4,2532.9,4.2050461]
[1748282127561,1.97376244,2533.3,2533.1,4.2050461]
[1748282127768,1.97376244,2533.3,2533.2,8.0]
[1748282128150,1.4195,2533.1,2532.4,6.14525028]
[1748282128498,1.9742557,2532.6,2532.4,0.47210418]
[1748282128649,1.97425183,2532.7,2532.5,4.2050461]
[1748282128980,3.39340643,2533.1,2532.5,4.2050461]
[1748282129288,1.97394393,2533.0,2532.9,12.2050461]
[1748282130981,1.97394393,2533.0,2532.9,8.0]
[1748282131341,1.97394393,2533.0,2532.6,8.0]
[1748282131342,1.97417775,2532.7,2532.6,8.0]
[1748282131666,1.3431,2533.0,2532.6,8.0]
[1748282131868,1.97408319,2532.9,2532.6,8.0]
[1748282132254,1.3431,2533.4,2532.8,8.0]
[1748282132480,1.97399585,2533.0,2532.8,8.0]
[1748282132680,1.97399585,2533.0,2532.5,8.0]
[1748282132681,1.97425217,2532.7,2532.5,8.0]
[1748282132881,1.97413814,2532.8,2532.5,8.0]
[1748282133456,1.97413814,2532.8,2532.5,3.946]
[1748282133792,1.97368641,2533.4,2532.6,8.0]
[1748282133986,1.4749,2533.4,2533.2,4.2050461]
[1748282134144,1.4749,2533.6,2533.3,8.0]
[1748282134372,1.97363708,2533.4,2533.1,8.0]
[1748282135610,2.0156,2533.5,2532.7,4.72]
[1748282135812,1.97448959,2532.3,2532.2,1.81840418]
[1748282136109,1.97448959,2532.3,2532.2,0.47210418]
[1748282136301,1.97457103,2532.2,2532.0,1.3463]
[1748282136508,1.97451799,2532.3,2532.0,9.3463]
[1748282136671,1.4656,2532.7,2532.2,8.5686381]
[1748282136876,1.97417952,2532.7,2532.3,11.946]
[1748282137378,1.97426986,2532.6,2532.3,11.946]
[1748282137604,1.97425929,2532.6,2532.3,11.946]
[1748282142818,1.97433824,2532.5,2532.3,11.946]
[1748282143722,1.97433824,2532.5,2532.1,3.94917623]
[1748282143898,1.97433824,2532.5,2532.2,11.946]
[1748282145002,1.97430274,2532.6,2532.2,11.946]
[1748282145499,1.97430324,2532.6,2532.2,11.946]
[1748282146109,1.97430324,2532.6,2532.2,16.666]
[1748282146525,1.97433771,2532.5,2532.2,16.666]
[1748282146702,1.97448959,2532.3,2532.2,12.72]
[1748282148012,1.97464555,2532.1,2532.0,0.47056754]
[1748282148521,1.97464555,2532.1,2531.9,8.0]
[1748282148923,1.97472353,2532.0,2531.9,8.0]
[1748282149228,1.97467871,2532.1,2531.9,8.0]
[1748282149727,1.97472353,2532.0,2531.9,8.0]
[1748282149922,1.97459632,2532.2,2531.9,8.0]
[1748282150101,1.97468294,2532.1,2531.9,8.0]
[1748282152128,1.97480153,2531.9,2531.8,0.47056754]
[1748282153593,1.97488339,2531.8,2531.6,8.0]
[1748282153793,1.97488339,2531.8,2531.5,8.87185398]
[1748282154830,1.97488339,2531.8,2531.5,8.0]
[1748282155934,1.97480632,2531.9,2531.5,8.0]
[1748282155935,1.97481951,2531.9,2531.5,8.39980422]
[1748282156530,1.9749431,2531.8,2531.5,8.39980422]
[1748282157042,1.97503555,2531.6,2531.5,8.39980422]
[1748282157217,1.97503555,2531.6,2531.5,8.0]
[1748282157418,3.34143555,2531.6,2531.5,8.0]
[1748282157741,3.34143555,2531.6,2531.4,5.22556754]
[1748282157742,1.97511356,2531.5,2531.4,0.47056754]
[1748282157915,7.28851356,2531.5,2531.4,0.47056754]
[1748282158123,7.83851356,2531.5,2531.4,0.47056754]
[1748282158306,7.83851356,2531.5,2530.9,8.47056754]
[1748282158307,3.34174766,2531.2,2530.9,8.47056754]
[1748282159623,3.34174766,2531.2,2530.8,4.756]
[1748282160026,3.34174766,2531.2,2530.9,8.0]
[1748282162749,1.3664,2531.2,2530.9,8.0]
[1748282162936,1.4231,2531.6,2531.1,8.1]
[1748282163247,5.3711,2531.8,2531.3,8.0]
[1748282163421,1.97496906,2531.7,2531.1,8.77083002]
[1748282163627,1.97496906,2531.7,2531.2,3.9506072]
[1748282164038,3.39799398,2531.8,2531.3,11.95053613]
[1748282164210,3.39799398,2531.8,2531.4,8.0]
[1748282164414,1.97489398,2531.8,2531.4,8.0]
[1748282165048,1.97483317,2531.9,2531.4,11.95030011]
[1748282165261,1.97484954,2531.9,2531.5,1.4294]
[1748282166130,1.97497232,2531.7,2531.3,13.37986454]
[1748282167046,1.97497232,2531.7,2531.3,17.32786454]
[1748282167731,1.97491285,2531.8,2531.3,17.32786454]
[1748282168475,1.97491285,2531.8,2531.4,3.95037948]
[1748282168755,1.97484383,2531.9,2531.4,3.95037948]
[1748282170558,1.3713,2532.0,2531.5,3.95016508]
[1748282170861,1.97475205,2532.0,2531.7,8.0]
[1748282171734,1.97475205,2532.0,2531.5,11.95015019]
[1748282172935,1.97481784,2531.9,2531.5,8.0]
[1748282173431,1.97475205,2532.0,2531.5,11.95013007]
[1748282173951,1.97468337,2532.1,2531.6,3.95004534]
[1748282174131,1.97473186,2532.0,2531.6,3.95004534]
[1748282174758,1.97472771,2532.0,2531.7,8.0]
[1748282174956,1.9746906,2532.1,2531.7,3.94991433]
[1748282175322,3.36109929,2532.2,2531.7,3.94991433]
[1748282175863,1.97464881,2532.1,2531.7,3.94991433]
[1748282176058,1.97464881,2532.1,2531.7,3.94991014]
[1748282176271,1.97476024,2532.0,2531.6,18.15868594]
[1748282176453,1.97466525,2532.1,2531.6,18.62925348]
[1748282176654,1.97466525,2532.1,2531.7,3.9498971]
[1748282178031,1.97466525,2532.1,2531.6,18.62920971]
[1748282178330,1.3865,2532.2,2531.6,14.67926754]
[1748282178657,1.97476299,2532.0,2531.6,14.67926754]
[1748282178854,1.97476299,2532.0,2531.6,18.62933258]
[1748282179365,1.97469021,2532.1,2531.7,3.94989676]
[1748282179570,1.97467921,2532.1,2531.6,14.67926754]
[1748282179755,1.9746759,2532.1,2531.6,18.62919561]
[1748282180065,1.9746759,2532.1,2531.6,18.62925469]
[1748282180461,1.97461057,2532.2,2531.7,3.94988149]
[1748282180665,1.9747159,2532.1,2531.7,3.94991458]
[1748282180835,1.9747159,2532.1,2531.6,18.62924448]
[1748282181371,1.97472734,2532.0,2531.6,22.57624448]
[1748282181530,1.97472734,2532.0,2531.6,27.29624448]
[1748282181969,1.97472734,2532.0,2531.7,4.20826797]
[1748282183376,1.9747159,2532.1,2531.7,4.20826797]
[1748282183668,1.97472523,2532.0,2531.7,4.20826797]
[1748282184169,1.9745983,2532.2,2532.0,8.0]
[1748282184584,1.97464555,2532.1,2532.0,8.0]
[1748282184784,1.97463539,2532.2,2532.0,8.0]
[1748282184979,1.97425875,2532.6,2532.2,8.0]
[1748282184980,3.3367241,2532.6,2532.2,8.0]
[1748282185163,3.3367241,2532.6,2532.4,8.0]
[1748282185164,1.3624,2532.6,2532.4,8.0]
[1748282185681,1.97423637,2532.7,2532.4,8.0]
[1748282185876,3.41633762,2532.8,2532.4,8.0]
[1748282186056,2.3396722,2532.9,2532.5,8.0]
[1748282186382,1.97410173,2532.8,2532.5,8.0]
[1748282186890,1.97403777,2532.9,2532.5,8.0]
[1748282187085,1.97403777,2532.9,2532.5,9.405]
[1748282187292,1.97403777,2532.9,2532.5,13.35364489]
[1748282187463,1.97403777,2532.9,2532.5,9.405]
[1748282187648,1.97395318,2533.0,2532.7,8.0]
[1748282187849,1.97395318,2533.0,2532.6,8.0]
[1748282188600,3.43852156,2533.2,2532.6,8.39347082]
[1748282188762,1.9739798,2533.0,2532.6,0.39347082]
[1748282188949,1.9739798,2533.0,2532.6,8.0]
[1748282189590,1.9739798,2533.0,2532.7,8.0]
[1748282189892,1.9739798,2533.0,2532.6,8.0]
[1748282190207,1.97388953,2533.1,2532.6,11.9484134]
[1748282190494,1.973953,2533.0,2532.6,11.9484134]
[1748282190707,1.973953,2533.0,2532.5,13.91817052]
[1748282190866,1.973953,2533.0,2532.6,8.0]
[1748282191381,1.973953,2533.0,2532.6,3.948499]
[1748282191695,1.97393622,2533.1,2532.7,8.0]
[1748282191866,1.97386601,2533.1,2532.7,8.0]
[1748282192067,1.97393979,2533.1,2532.6,12.33732344]
[1748282192483,1.9739654,2533.0,2532.7,8.0]
[1748282194771,1.9739654,2533.0,2532.6,17.05482444]
[1748282195097,1.9739654,2533.0,2532.7,8.0]
[1748282195788,1.9739654,2533.0,2532.6,13.00332869]
[1748282195789,1.97389543,2533.1,2532.6,17.05482444]
[1748282196100,1.97389543,2533.1,2532.7,8.0]
[1748282196391,1.97395847,2533.0,2532.7,8.0]
[1748282197419,1.4647,2533.2,2532.8,3.94817346]
[1748282197566,3.43848877,2533.2,2532.9,8.0]
[1748282198221,1.4647,2533.2,2533.0,8.0]
[1748282198396,1.4072,2533.4,2533.1,3.94772785]
[1748282198702,1.9735488,2533.6,2533.2,0.39477279]
[1748282198867,1.97359731,2533.5,2533.2,0.39477279]
[1748282199274,1.97352258,2533.6,2533.2,0.39477279]
[1748282199586,1.97356586,2533.5,2533.2,0.39477279]
[1748282199785,1.97352258,2533.6,2533.3,8.0]
[1748282200161,3.34531946,2533.7,2533.3,8.0]
[1748282200667,1.97359464,2533.5,2533.3,8.0]
[1748282200873,1.97363227,2533.4,2533.3,8.0]
[1748282201072,1.97375575,2533.3,2533.1,8.675]
[1748282202080,1.97367882,2533.4,2533.1,8.675]
[1748282202282,1.97367882,2533.4,2533.1,13.395]
[1748282202627,0.04934031,2533.5,2533.1,4.72]
[1748282202917,1.97378809,2533.2,2533.1,12.72]
[1748282205917,1.97374415,2533.3,2533.1,12.72]
[1748282206673,1.4662,2533.4,2533.1,13.52775557]
[1748282206879,1.97359655,2533.5,2533.1,12.72]
[1748282207196,1.9736201,2533.5,2533.1,12.72]
[1748282207380,7.64389524,2533.6,2533.1,12.72]
[1748282207584,7.64391498,2533.6,2533.1,12.72]
[1748282207824,1.97357237,2533.5,2533.1,16.66765661]
[1748282207984,1.97357237,2533.5,2533.1,12.72]
[1748282208315,1.97369221,2533.4,2533.1,12.72]
[1748282209740,6.17848868,2533.4,2533.1,12.72]
[1748282209904,1.97369221,2533.4,2533.1,12.72]
[1748282211714,1.97356596,2533.5,2533.1,16.66762084]
[1748282211933,1.97356596,2533.5,2533.1,18.13692084]
[1748282212705,1.97356596,2533.5,2533.3,8.0]
[1748282213144,1.97363227,2533.4,2533.3,8.0]
[1748282213305,1.97355486,2533.5,2533.3,8.0]
[1748282214405,1.97363227,2533.4,2533.3,8.0]
[1748282215245,1.97218292,2533.4,2533.3,8.0]
[1748282215644,1.97378809,2533.2,2533.1,8.0]
[1748282215832,1.97374209,2533.3,2533.1,11.945]
[1748282217020,1.97367719,2533.4,2533.1,11.945]
[1748282217444,1.97371857,2533.3,2533.1,11.945]
[1748282218945,1.97371857,2533.3,2533.1,8.0]
[1748282219144,1.97378809,2533.2,2533.1,8.0]
[1748282219344,3.42988809,2533.2,2533.1,8.0]
[1748282220048,3.42988809,2533.2,2533.0,8.0]
[1748282220255,1.4561,2533.2,2533.0,8.0]
[1748282220551,3.42992666,2533.2,2533.0,8.0]
[1748282221250,1.97386601,2533.1,2533.0,8.0]
[1748282221550,3.42991849,2533.2,2533.0,8.0]
[1748282221914,1.97386601,2533.1,2533.0,8.0]
[1748282222327,1.97386601,2533.1,2532.9,0.47056754]
[1748282222328,1.97394393,2533.0,2532.9,0.47056754]
[1748282223037,2.93483764,2533.1,2532.9,0.47056754]
[1748282223352,1.97394393,2533.0,2532.9,0.47056754]
[1748282223713,1.97402187,2532.9,2532.8,8.0]
[1748282225249,3.34042187,2532.9,2532.8,8.0]
[1748282225461,8.07735708,2532.9,2532.8,8.0]
[1748282225817,12.02235708,2532.9,2532.8,8.0]
[1748282226254,1.97409981,2532.8,2532.7,12.702]
[1748282226854,1.97409981,2532.8,2532.7,8.0]
[1748282229552,1.3664,2532.9,2532.7,8.0]
[1748282229738,3.946,2533.4,2532.7,11.946]
[1748282229924,1.97394078,2533.1,2532.7,3.946]
[1748282230113,1.97394078,2533.1,2532.8,8.0]
[1748282230525,1.97394537,2533.0,2532.8,8.0]
[1748282230763,1.97402187,2532.9,2532.7,3.946]
[1748282232052,1.4889,2533.3,2532.7,5.4286]
[1748282232250,1.97387115,2533.1,2532.8,8.0]
[1748282232654,1.97387115,2533.1,2532.7,13.4286]
[1748282232856,1.97387115,2533.1,2532.8,8.0]
[1748282233423,1.97378809,2533.2,2532.6,0.47056754]
[1748282233729,1.97417775,2532.7,2532.6,0.47056754]
[1748282234131,1.97441162,2532.4,2532.3,8.47056754]
[1748282234331,1.97441162,2532.4,2532.3,0.47056754]
[1748282234863,1.97441162,2532.4,2532.3,8.47056754]
[1748282235081,1.97441162,2532.4,2532.3,8.0]
[1748282237430,1.97437547,2532.5,2532.3,8.0]
[1748282237833,1.4365,2532.6,2532.3,8.0]
[1748282238074,3.41079019,2532.6,2532.3,8.0]
[1748282238300,3.41076169,2532.6,2532.3,8.0]
[1748282238782,1.4365,2532.6,2532.3,11.94897729]
[1748282238980,1.97416945,2532.8,2532.3,11.94896526]
[1748282239152,1.97424418,2532.7,2532.3,8.0]
[1748282239896,1.97417775,2532.7,2532.3,8.0]
[1748282240101,1.3732,2532.9,2532.3,8.0]
[1748282240293,3.946,2533.0,2532.1,1.82336754]
[1748282240294,1.97455951,2532.3,2532.1,0.47056754]
[1748282240494,1.97445284,2532.4,2532.1,0.47056754]
[1748282241859,1.97445284,2532.4,2532.0,13.56168448]
[1748282242054,2.52410312,2532.8,2532.0,13.56168448]
[1748282242055,1.97408334,2532.9,2532.5,8.0]
[1748282242260,1.97410801,2532.8,2532.5,8.0]
[1748282242586,1.97410801,2532.8,2532.4,8.0]
[1748282243372,1.9743032,2532.6,2532.4,8.0]
[1748282243572,1.97409981,2532.8,2532.4,8.0]
[1748282243769,1.4032,2532.9,2532.2,1.4491]
[1748282243770,7.58278517,2532.9,2532.2,1.4491]
[1748282244097,1.97456756,2532.2,2532.1,5.17456754]
[1748282244299,1.97456756,2532.2,2532.1,13.17456754]
[1748282244482,1.3736,2532.3,2532.1,13.17456754]
[1748282244688,1.97456756,2532.2,2532.1,13.17456754]
[1748282245193,1.3736,2532.3,2532.1,13.17456754]
[1748282245396,1.97456756,2532.2,2532.1,13.17456754]
[1748282245604,3.34812856,2532.3,2532.1,12.704]
[1748282246285,1.97452856,2532.3,2531.8,0.47056754]
[1748282246489,3.94380153,2531.9,2531.8,0.47056754]
[1748282246676,7.93918664,2531.9,2531.8,0.47056754]
[1748282246880,7.88980153,2531.9,2531.8,0.47056754]
[1748282247371,8.25491557,2531.9,2531.8,0.47056754]
[1748282247646,8.25491557,2531.9,2531.1,0.1]
[1748282247647,1.97526872,2531.4,2531.1,0.1]
[1748282247833,1.97534589,2531.3,2531.1,0.1]
[1748282248390,1.97520825,2531.4,2531.1,0.1]
[1748282248733,1.97511255,2531.6,2531.3,8.0]
[1748282249052,1.97519159,2531.4,2531.3,8.0]
[1748282249272,1.419,2531.9,2531.3,8.0]
[1748282249452,1.97507026,2531.6,2531.3,8.0]
[1748282250095,1.97513307,2531.5,2531.3,8.0]
[1748282250970,1.97519159,2531.4,2531.3,8.0]
[1748282251874,1.97528245,2531.3,2531.1,0.1]
[1748282252176,1.97528245,2531.3,2531.2,16.626]
[1748282252559,1.97528245,2531.3,2531.2,8.0]
[1748282252748,1.97528245,2531.3,2531.2,16.626]
[1748282252932,1.97525972,2531.4,2531.3,8.0]
[1748282253131,1.97525972,2531.4,2531.2,8.626]
[1748282253348,1.97525972,2531.4,2531.1,0.1]
[1748282253555,1.97525972,2531.4,2531.2,8.626]
[1748282254464,1.97526962,2531.3,2531.2,4.679]